[Event "*** SCC Grand Prix: Titled Tuesday Blitz"]
[Site "Chess.com"]
[Date "2020.08.11"]
[Round "2"]
[White "juancruzarias"]
[Black "secretsuperstar7"]
[Result "1-0"]
[WhiteElo "2381"]
[BlackElo "2090"]
[TimeControl "180+1"]
[EndTime "10:14:30 PDT"]
[Termination "juancruzarias won by checkmate"]

1. d4 {[%clk 0:03:00.9]} 1... d5 {[%clk 0:02:56.9]} 2. c4 {[%clk 0:03:00.3]}
2... c6 {[%clk 0:02:52.4]} 3. cxd5 {[%clk 0:02:57.1]} 3... cxd5 {[%clk
0:02:51.2]} 4. Bg5 {[%clk 0:02:57.6]} 4... f6 {[%clk 0:02:41.2]} 5. Bd2 {[%clk
0:02:50.2]} 5... Nc6 {[%clk 0:02:36.2]} 6. Nc3 {[%clk 0:02:50.7]} 6... e5 {[%clk
0:02:35.3]} 7. dxe5 {[%clk 0:02:47.3]} 7... fxe5 {[%clk 0:02:34]} 8. e4 {[%clk
0:02:47.3]} 8... d4 {[%clk 0:02:13.7]} 9. Nd5 {[%clk 0:02:47.1]} 9... Nf6 {[%clk
0:02:12.7]} 10. Bc4 {[%clk 0:02:42.4]} 10... Na5 {[%clk 0:01:48.5]} 11. Nxf6+
{[%clk 0:02:33.8]} 11... gxf6 {[%clk 0:01:42.6]} 12. Qh5+ {[%clk 0:02:34]} 12...
Ke7 {[%clk 0:01:42.6]} 13. Qf7+ {[%clk 0:02:28]} 13... Kd6 {[%clk 0:01:42.6]}
14. Qd5+ {[%clk 0:02:10.8]} 14... Ke7 {[%clk 0:01:41.4]} 15. Bb4+ {[%clk
0:02:09.2]} 15... Ke8 {[%clk 0:01:40.5]} 16. Qf7# {[%clk 0:02:08.2]} 1-0

[Event "*** SCC Grand Prix: Titled Tuesday Blitz"]
[Site "Chess.com"]
[Date "2020.08.11"]
[Round "2"]
[White "enriquebutti"]
[Black "Enriquack"]
[Result "0-1"]
[WhiteElo "1804"]
[BlackElo "2341"]
[TimeControl "180+1"]
[EndTime "10:15:08 PDT"]
[Termination "Enriquack won by resignation"]

1. d4 {[%clk 0:03:00.7]} 1... Nf6 {[%clk 0:02:59.2]} 2. Nf3 {[%clk 0:02:59.8]}
2... g6 {[%clk 0:02:58.3]} 3. c4 {[%clk 0:02:58.5]} 3... Bg7 {[%clk 0:02:58.1]}
4. Nc3 {[%clk 0:02:58.5]} 4... d5 {[%clk 0:02:58]} 5. cxd5 {[%clk 0:02:57.3]}
5... Nxd5 {[%clk 0:02:57.6]} 6. e4 {[%clk 0:02:57.6]} 6... Nxc3 {[%clk
0:02:55.6]} 7. bxc3 {[%clk 0:02:57.6]} 7... O-O {[%clk 0:02:56]} 8. Be2 {[%clk
0:02:56.1]} 8... b6 {[%clk 0:02:49.8]} 9. Bg5 {[%clk 0:02:49.9]} 9... Bb7 {[%clk
0:02:49.4]} 10. Qd3 {[%clk 0:02:48.9]} 10... Nd7 {[%clk 0:02:41.7]} 11. O-O
{[%clk 0:02:42.5]} 11... Qe8 {[%clk 0:02:27.8]} 12. Qe3 {[%clk 0:02:35.7]} 12...
Nf6 {[%clk 0:02:23.5]} 13. Nd2 {[%clk 0:02:34.3]} 13... Qa4 {[%clk 0:01:42.4]}
14. Bd3 {[%clk 0:02:21.3]} 14... e5 {[%clk 0:01:37.7]} 15. d5 {[%clk 0:02:11.9]}
15... c6 {[%clk 0:01:35.9]} 16. c4 {[%clk 0:02:10.6]} 16... Rfe8 {[%clk
0:01:31.1]} 17. Bh6 {[%clk 0:02:00.8]} 17... Ng4 {[%clk 0:01:27]} 0-1

[Event "*** SCC Grand Prix: Titled Tuesday Blitz"]
[Site "Chess.com"]
[Date "2020.08.11"]
[Round "2"]
[White "Fighterman91"]
[Black "KingChess345"]
[Result "1-0"]
[WhiteElo "2627"]
[BlackElo "2179"]
[TimeControl "180+1"]
[EndTime "10:15:19 PDT"]
[Termination "Fighterman91 won by resignation"]

1. e4 {[%clk 0:03:00.9]} 1... c5 {[%clk 0:03:00.2]} 2. Nf3 {[%clk 0:03:01]} 2...
Nc6 {[%clk 0:03:00.6]} 3. Bb5 {[%clk 0:03:00.5]} 3... g6 {[%clk 0:02:59.9]} 4.
O-O {[%clk 0:02:56.1]} 4... Bg7 {[%clk 0:02:59.8]} 5. c3 {[%clk 0:02:52.6]} 5...
e5 {[%clk 0:02:59.3]} 6. d4 {[%clk 0:02:52.2]} 6... cxd4 {[%clk 0:02:54.9]} 7.
cxd4 {[%clk 0:02:53.1]} 7... exd4 {[%clk 0:02:52.2]} 8. Bf4 {[%clk 0:02:53.3]}
8... Nge7 {[%clk 0:02:47.6]} 9. Bd6 {[%clk 0:02:50.9]} 9... O-O {[%clk 0:02:45]}
10. Nbd2 {[%clk 0:02:49.3]} 10... a6 {[%clk 0:02:35]} 11. Bc4 {[%clk 0:02:46.8]}
11... b5 {[%clk 0:02:31.4]} 12. Bb3 {[%clk 0:02:46.5]} 12... Re8 {[%clk
0:02:28.1]} 13. Bxf7+ {[%clk 0:02:28.4]} 13... Kh8 {[%clk 0:01:45.2]} 14. Bxe8
{[%clk 0:02:26.2]} 14... Qxe8 {[%clk 0:01:46.1]} 15. Nb3 {[%clk 0:02:20]} 15...
Bb7 {[%clk 0:01:43]} 16. Nc5 {[%clk 0:02:19.6]} 16... Ra7 {[%clk 0:01:37.8]} 17.
Nxb7 {[%clk 0:02:18.6]} 17... Rxb7 {[%clk 0:01:38.7]} 18. Rc1 {[%clk 0:02:15.5]}
18... Nc8 {[%clk 0:01:38.2]} 19. Bc5 {[%clk 0:02:13.3]} 19... d6 {[%clk
0:01:37]} 20. Bxd4 {[%clk 0:02:13.3]} 20... Nxd4 {[%clk 0:01:35.9]} 21. Nxd4
{[%clk 0:02:13.9]} 21... Nb6 {[%clk 0:01:34.5]} 22. Re1 {[%clk 0:02:08.8]} 22...
Nc4 {[%clk 0:01:30.8]} 23. b3 {[%clk 0:02:07.4]} 23... Ne5 {[%clk 0:01:27.3]}
24. Nf3 {[%clk 0:02:07.3]} 24... Nf7 {[%clk 0:01:19.5]} 25. Qc2 {[%clk
0:02:07.2]} 1-0

[Event "*** SCC Grand Prix: Titled Tuesday Blitz"]
[Site "Chess.com"]
[Date "2020.08.11"]
[Round "2"]
[White "BlackWidow515"]
[Black "allvim"]
[Result "0-1"]
[WhiteElo "2110"]
[BlackElo "2387"]
[TimeControl "180+1"]
[EndTime "10:15:22 PDT"]
[Termination "allvim won by resignation"]

1. d4 {[%clk 0:03:00]} 1... Nf6 {[%clk 0:02:59.1]} 2. Nf3 {[%clk 0:03:00.6]}
2... d5 {[%clk 0:02:58.7]} 3. g3 {[%clk 0:03:01.3]} 3... e6 {[%clk 0:02:57.7]}
4. Bg2 {[%clk 0:03:02]} 4... Be7 {[%clk 0:02:58.4]} 5. O-O {[%clk 0:03:02.6]}
5... O-O {[%clk 0:02:59.1]} 6. Nbd2 {[%clk 0:03:03.2]} 6... c5 {[%clk 0:02:59]}
7. dxc5 {[%clk 0:03:01.9]} 7... Bxc5 {[%clk 0:02:58.7]} 8. c4 {[%clk 0:02:59]}
8... b6 {[%clk 0:02:55.1]} 9. b3 {[%clk 0:02:58.5]} 9... Bb7 {[%clk 0:02:54.7]}
10. Bb2 {[%clk 0:02:59]} 10... Nbd7 {[%clk 0:02:54.7]} 11. Rc1 {[%clk
0:02:58.6]} 11... Rc8 {[%clk 0:02:52.6]} 12. Ne5 {[%clk 0:02:50.2]} 12... Nxe5
{[%clk 0:02:41.6]} 13. Bxe5 {[%clk 0:02:49.9]} 13... Qe7 {[%clk 0:02:41.6]} 14.
cxd5 {[%clk 0:02:43.5]} 14... Bxd5 {[%clk 0:02:38.4]} 15. Bxd5 {[%clk 0:02:42]}
15... Nxd5 {[%clk 0:02:31.6]} 16. Ne4 {[%clk 0:02:40.2]} 16... Ba3 {[%clk
0:02:31.4]} 17. Rc2 {[%clk 0:02:32.4]} 17... Qb4 {[%clk 0:02:07]} 18. Nd6 {[%clk
0:02:21.7]} 18... Rxc2 {[%clk 0:01:57.3]} 19. Qxc2 {[%clk 0:02:19.7]} 19... f6
{[%clk 0:01:48.7]} 20. Qc6 {[%clk 0:01:37.8]} 20... fxe5 {[%clk 0:01:44.2]} 0-1

[Event "*** SCC Grand Prix: Titled Tuesday Blitz"]
[Site "Chess.com"]
[Date "2020.08.11"]
[Round "2"]
[White "Oglob71"]
[Black "Quiet_Desperation"]
[Result "1-0"]
[WhiteElo "2569"]
[BlackElo "2278"]
[TimeControl "180+1"]
[EndTime "10:15:35 PDT"]
[Termination "Oglob71 won by resignation"]

1. d4 {[%clk 0:03:00.9]} 1... d5 {[%clk 0:03:00]} 2. Nf3 {[%clk 0:03:00]} 2...
c6 {[%clk 0:03:00.4]} 3. c4 {[%clk 0:02:59.2]} 3... Nf6 {[%clk 0:03:00.7]} 4. e3
{[%clk 0:02:59.7]} 4... Bf5 {[%clk 0:02:45.9]} 5. Nc3 {[%clk 0:02:59.3]} 5...
dxc4 {[%clk 0:02:45.4]} 6. Bxc4 {[%clk 0:02:58.1]} 6... e6 {[%clk 0:02:45.3]} 7.
O-O {[%clk 0:02:57.5]} 7... Be7 {[%clk 0:02:40.2]} 8. Qe2 {[%clk 0:02:57.7]}
8... O-O {[%clk 0:02:39.8]} 9. e4 {[%clk 0:02:58.1]} 9... Bg4 {[%clk 0:02:39.5]}
10. e5 {[%clk 0:02:51.4]} 10... Nd5 {[%clk 0:02:37.7]} 11. Rd1 {[%clk
0:02:45.8]} 11... Nxc3 {[%clk 0:02:22.7]} 12. bxc3 {[%clk 0:02:45.6]} 12... Nd7
{[%clk 0:02:21.9]} 13. Rb1 {[%clk 0:02:45.3]} 13... b5 {[%clk 0:02:16.8]} 14.
Bd3 {[%clk 0:02:45.4]} 14... Nb6 {[%clk 0:02:02.5]} 15. Qe4 {[%clk 0:02:42.5]}
15... Bf5 {[%clk 0:02:00.6]} 16. Qxc6 {[%clk 0:02:42.4]} 16... Bxd3 {[%clk
0:02:00.4]} 17. Rxd3 {[%clk 0:02:42.6]} 17... a6 {[%clk 0:01:58.4]} 18. Qe4
{[%clk 0:02:39.9]} 18... Rc8 {[%clk 0:01:56.3]} 19. Bd2 {[%clk 0:02:39.9]} 19...
Qd5 {[%clk 0:01:52.9]} 20. Qxd5 {[%clk 0:02:37.5]} 20... exd5 {[%clk 0:01:52.1]}
21. h4 {[%clk 0:02:28.2]} 21... h6 {[%clk 0:01:49.5]} 22. g4 {[%clk 0:02:25.1]}
22... Nc4 {[%clk 0:01:47.8]} 23. Kg2 {[%clk 0:02:19.9]} 23... Rc6 {[%clk
0:01:40.6]} 24. Be1 {[%clk 0:02:17.4]} 24... Rfc8 {[%clk 0:01:39.1]} 25. Kg3
{[%clk 0:02:17.5]} 25... Bd8 {[%clk 0:01:36.1]} 26. g5 {[%clk 0:02:15.6]} 26...
h5 {[%clk 0:01:35.4]} 27. Ng1 {[%clk 0:02:07.5]} 27... Ba5 {[%clk 0:01:33.3]}
28. Ne2 {[%clk 0:02:07.3]} 28... Re8 {[%clk 0:01:26.8]} 29. Nf4 {[%clk
0:02:03.9]} 29... g6 {[%clk 0:01:26.6]} 30. Nxd5 {[%clk 0:02:03.4]} 30... Rd8
{[%clk 0:01:24.1]} 31. Nf6+ {[%clk 0:02:03.5]} 31... Kg7 {[%clk 0:01:22.9]} 32.
Rf3 {[%clk 0:02:01]} 1-0

[Event "*** SCC Grand Prix: Titled Tuesday Blitz"]
[Site "Chess.com"]
[Date "2020.08.11"]
[Round "2"]
[White "denispopov"]
[Black "Chessbard1972"]
[Result "0-1"]
[WhiteElo "1845"]
[BlackElo "2343"]
[TimeControl "180+1"]
[EndTime "10:15:35 PDT"]
[Termination "Chessbard1972 won by resignation"]

1. e4 {[%clk 0:03:00.9]} 1... c5 {[%clk 0:02:58.7]} 2. Nc3 {[%clk 0:02:56.7]}
2... a6 {[%clk 0:02:57.9]} 3. d4 {[%clk 0:02:55.4]} 3... cxd4 {[%clk 0:02:57.3]}
4. Qxd4 {[%clk 0:02:56.3]} 4... Nc6 {[%clk 0:02:56.9]} 5. Qd2 {[%clk 0:02:52.8]}
5... Nf6 {[%clk 0:02:55.3]} 6. b3 {[%clk 0:02:52.9]} 6... e6 {[%clk 0:02:54.7]}
7. Bb2 {[%clk 0:02:52.9]} 7... Bb4 {[%clk 0:02:54.5]} 8. f3 {[%clk 0:02:53]}
8... d5 {[%clk 0:02:54]} 9. a3 {[%clk 0:02:52.2]} 9... Bc5 {[%clk 0:02:38.9]}
10. O-O-O {[%clk 0:02:46.6]} 10... d4 {[%clk 0:02:36.5]} 11. Nce2 {[%clk
0:02:04.4]} 11... e5 {[%clk 0:02:30]} 12. g4 {[%clk 0:01:53.9]} 12... O-O {[%clk
0:02:27.6]} 13. Kb1 {[%clk 0:01:46.1]} 13... Qe7 {[%clk 0:02:24.1]} 14. Ka2
{[%clk 0:01:37.7]} 14... Be6 {[%clk 0:02:23.2]} 15. h4 {[%clk 0:01:20.9]} 15...
a5 {[%clk 0:02:20.6]} 16. a4 {[%clk 0:01:04.2]} 16... b5 {[%clk 0:02:19.1]} 17.
Ka1 {[%clk 0:00:46.9]} 17... bxa4 {[%clk 0:02:17.7]} 18. bxa4 {[%clk 0:00:47.8]}
18... Rfb8 {[%clk 0:02:15.6]} 19. h5 {[%clk 0:00:42.6]} 19... Ba3 {[%clk
0:02:13.5]} 0-1

[Event "*** SCC Grand Prix: Titled Tuesday Blitz"]
[Site "Chess.com"]
[Date "2020.08.11"]
[Round "2"]
[White "TheBigBoss04"]
[Black "nikitakhoroshev"]
[Result "1-0"]
[WhiteElo "2831"]
[BlackElo "2549"]
[TimeControl "180+1"]
[EndTime "10:15:38 PDT"]
[Termination "TheBigBoss04 won by resignation"]

1. Nf3 {[%clk 0:03:00.9]} 1... d6 {[%clk 0:02:58.6]} 2. d4 {[%clk 0:03:00.3]}
2... f5 {[%clk 0:02:56.2]} 3. Bg5 {[%clk 0:02:56.2]} 3... Nd7 {[%clk 0:02:54.5]}
4. e3 {[%clk 0:02:54.6]} 4... Ndf6 {[%clk 0:02:53.8]} 5. Bc4 {[%clk 0:02:53.1]}
5... h6 {[%clk 0:02:52.5]} 6. Bh4 {[%clk 0:02:52.8]} 6... g5 {[%clk 0:02:51.8]}
7. Bg3 {[%clk 0:02:52.8]} 7... e6 {[%clk 0:02:51.5]} 8. c3 {[%clk 0:02:51.4]}
8... Ne7 {[%clk 0:02:48.8]} 9. Qb3 {[%clk 0:02:51]} 9... Ned5 {[%clk 0:02:48.6]}
10. Nbd2 {[%clk 0:02:49.9]} 10... a6 {[%clk 0:02:47.9]} 11. a4 {[%clk
0:02:49.5]} 11... Rb8 {[%clk 0:02:43.6]} 12. a5 {[%clk 0:02:47.8]} 12... Bd7
{[%clk 0:02:42.2]} 13. O-O {[%clk 0:02:47]} 13... Bg7 {[%clk 0:02:41.1]} 14.
Rfe1 {[%clk 0:02:43.5]} 14... O-O {[%clk 0:02:38.8]} 15. e4 {[%clk 0:02:42.9]}
15... fxe4 {[%clk 0:02:30.9]} 16. Nxe4 {[%clk 0:02:41.5]} 16... Nxe4 {[%clk
0:02:29.4]} 17. Bxd5 {[%clk 0:02:38.5]} 17... Nxg3 {[%clk 0:02:27]} 18. Bxe6+
{[%clk 0:02:38.2]} 18... Kh8 {[%clk 0:02:24.5]} 19. hxg3 {[%clk 0:02:37.9]}
19... Bxe6 {[%clk 0:02:20.8]} 20. Qxe6 {[%clk 0:02:33.2]} 20... Re8 {[%clk
0:02:19.2]} 21. Qf7 {[%clk 0:02:28.3]} 21... Rf8 {[%clk 0:02:17.4]} 22. Qe6
{[%clk 0:02:22.6]} 22... Re8 {[%clk 0:02:17.1]} 23. Qxe8+ {[%clk 0:02:22.5]}
23... Qxe8 {[%clk 0:02:18]} 24. Rxe8+ {[%clk 0:02:22.2]} 24... Rxe8 {[%clk
0:02:18.9]} 25. Re1 {[%clk 0:02:13.9]} 25... Rxe1+ {[%clk 0:02:18.2]} 26. Nxe1
{[%clk 0:02:14.7]} 26... Kg8 {[%clk 0:02:19]} 27. Nd3 {[%clk 0:02:11]} 27... Kf7
{[%clk 0:02:19.2]} 28. d5 {[%clk 0:02:07.8]} 28... Ke7 {[%clk 0:02:15.9]} 29. f4
{[%clk 0:02:02.1]} 29... Kd7 {[%clk 0:02:11.2]} 30. Kf2 {[%clk 0:02:00.2]} 30...
c6 {[%clk 0:02:11.4]} 31. c4 {[%clk 0:01:57.9]} 31... c5 {[%clk 0:02:10.1]} 32.
Ke3 {[%clk 0:01:55.2]} 32... Ke7 {[%clk 0:02:01.1]} 33. Ke4 {[%clk 0:01:54.8]}
33... Kf6 {[%clk 0:02:01.3]} 34. Nf2 {[%clk 0:01:47.7]} 34... h5 {[%clk
0:02:01.1]} 35. g4 {[%clk 0:01:44.7]} 35... h4 {[%clk 0:01:58.9]} 36. Nh3 {[%clk
0:01:43.3]} 36... Bh6 {[%clk 0:01:59.1]} 37. fxg5+ {[%clk 0:01:41.7]} 37... Bxg5
{[%clk 0:02:00]} 38. Nxg5 {[%clk 0:01:42]} 38... Kxg5 {[%clk 0:02:00.9]} 39. Kf3
{[%clk 0:01:42.5]} 39... Kg6 {[%clk 0:02:00.9]} 40. Kf4 {[%clk 0:01:42.6]} 40...
Kf6 {[%clk 0:01:59.6]} 41. g5+ {[%clk 0:01:42.7]} 1-0

[Event "*** SCC Grand Prix: Titled Tuesday Blitz"]
[Site "Chess.com"]
[Date "2020.08.11"]
[Round "2"]
[White "1977Ivan"]
[Black "anon569"]
[Result "1-0"]
[WhiteElo "2660"]
[BlackElo "2344"]
[TimeControl "180+1"]
[EndTime "10:15:44 PDT"]
[Termination "1977Ivan won by resignation"]

1. d4 {[%clk 0:03:00.9]} 1... Nf6 {[%clk 0:02:58.4]} 2. c4 {[%clk 0:03:00.9]}
2... e6 {[%clk 0:02:57.1]} 3. Nc3 {[%clk 0:03:01.1]} 3... Bb4 {[%clk 0:02:55.7]}
4. Nf3 {[%clk 0:03:01.3]} 4... b6 {[%clk 0:02:51.2]} 5. g4 {[%clk 0:02:51.5]}
5... Bb7 {[%clk 0:02:28.4]} 6. g5 {[%clk 0:02:49.2]} 6... Ne4 {[%clk 0:02:24.5]}
7. Qd3 {[%clk 0:02:49.4]} 7... f5 {[%clk 0:01:24.5]} 8. gxf6 {[%clk 0:02:28.6]}
8... Qxf6 {[%clk 0:01:21.1]} 9. Bg2 {[%clk 0:02:22.3]} 9... c5 {[%clk
0:00:59.8]} 10. O-O {[%clk 0:02:14]} 10... cxd4 {[%clk 0:00:30.8]} 11. Nxe4
{[%clk 0:02:12.7]} 1-0

[Event "*** SCC Grand Prix: Titled Tuesday Blitz"]
[Site "Chess.com"]
[Date "2020.08.11"]
[Round "2"]
[White "diablanni"]
[Black "tptagain"]
[Result "0-1"]
[WhiteElo "2331"]
[BlackElo "2927"]
[TimeControl "180+1"]
[EndTime "10:15:45 PDT"]
[Termination "tptagain won by resignation"]

1. e4 {[%clk 0:03:00]} 1... c5 {[%clk 0:02:57.5]} 2. Nf3 {[%clk 0:02:58.9]} 2...
Nc6 {[%clk 0:02:58.1]} 3. Bb5 {[%clk 0:02:57]} 3... e6 {[%clk 0:02:57]} 4. Bxc6
{[%clk 0:02:46]} 4... bxc6 {[%clk 0:02:56.8]} 5. b3 {[%clk 0:02:28]} 5... f6
{[%clk 0:02:56.3]} 6. O-O {[%clk 0:02:16.1]} 6... Nh6 {[%clk 0:02:54]} 7. d4
{[%clk 0:02:09.9]} 7... Nf7 {[%clk 0:02:53.1]} 8. Ba3 {[%clk 0:02:07.8]} 8...
cxd4 {[%clk 0:02:52.3]} 9. Bxf8 {[%clk 0:02:06]} 9... Kxf8 {[%clk 0:02:52.3]}
10. Qxd4 {[%clk 0:02:03.8]} 10... e5 {[%clk 0:02:50.8]} 11. Qd2 {[%clk
0:02:01.2]} 11... d5 {[%clk 0:02:46.3]} 12. Nc3 {[%clk 0:01:55.9]} 12... Bg4
{[%clk 0:02:35.5]} 13. Qd3 {[%clk 0:01:32.2]} 13... f5 {[%clk 0:02:11.2]} 14.
exf5 {[%clk 0:01:31.9]} 14... e4 {[%clk 0:02:08.4]} 15. Qd4 {[%clk 0:01:31.8]}
15... Bxf3 {[%clk 0:01:44.2]} 16. gxf3 {[%clk 0:01:31.2]} 16... Qg5+ {[%clk
0:01:36.6]} 17. Kh1 {[%clk 0:01:30.6]} 17... Qxf5 {[%clk 0:01:37.1]} 18. fxe4
{[%clk 0:01:25.9]} 18... Qf3+ {[%clk 0:01:37]} 19. Kg1 {[%clk 0:01:25.7]} 19...
Ng5 {[%clk 0:01:33.5]} 20. h4 {[%clk 0:01:16.9]} 20... Qg4+ {[%clk 0:01:31.4]}
0-1

[Event "*** SCC Grand Prix: Titled Tuesday Blitz"]
[Site "Chess.com"]
[Date "2020.08.11"]
[Round "2"]
[White "DenishevM"]
[Black "TranJMinh"]
[Result "0-1"]
[WhiteElo "2555"]
[BlackElo "2834"]
[TimeControl "180+1"]
[EndTime "10:15:52 PDT"]
[Termination "TranJMinh won by resignation"]

1. d4 {[%clk 0:03:00.1]} 1... Nf6 {[%clk 0:03:00.3]} 2. c4 {[%clk 0:02:55.3]}
2... e6 {[%clk 0:03:00.5]} 3. Nf3 {[%clk 0:02:55.4]} 3... b6 {[%clk 0:03:00.3]}
4. a3 {[%clk 0:02:54.7]} 4... Ba6 {[%clk 0:02:52.9]} 5. Qc2 {[%clk 0:02:54.4]}
5... c5 {[%clk 0:02:51.9]} 6. d5 {[%clk 0:02:48]} 6... exd5 {[%clk 0:02:51.5]}
7. cxd5 {[%clk 0:02:48.9]} 7... Bb7 {[%clk 0:02:52.1]} 8. e4 {[%clk 0:02:48.7]}
8... Qe7 {[%clk 0:02:52.4]} 9. Bd3 {[%clk 0:02:25.2]} 9... Bxd5 {[%clk 0:02:48]}
10. O-O {[%clk 0:02:21.3]} 10... Be6 {[%clk 0:02:45.3]} 11. Nc3 {[%clk
0:02:20.1]} 11... Nc6 {[%clk 0:02:43.2]} 12. Bg5 {[%clk 0:02:17]} 12... h6
{[%clk 0:02:38]} 13. Bh4 {[%clk 0:02:17]} 13... g5 {[%clk 0:02:36]} 14. Bg3
{[%clk 0:02:17.4]} 14... Bg7 {[%clk 0:02:26.6]} 15. Nb5 {[%clk 0:02:12]} 15...
O-O {[%clk 0:02:26.8]} 16. Bd6 {[%clk 0:02:02.4]} 16... Qd8 {[%clk 0:02:27.1]}
17. Bxf8 {[%clk 0:02:01.5]} 17... Qxf8 {[%clk 0:02:23.6]} 18. Nc7 {[%clk
0:01:57.9]} 18... Rd8 {[%clk 0:02:21.5]} 19. Nxe6 {[%clk 0:01:57.9]} 19... fxe6
{[%clk 0:02:22.4]} 20. Rfe1 {[%clk 0:01:51.8]} 20... Ng4 {[%clk 0:02:17.9]} 21.
h3 {[%clk 0:01:42.1]} 21... Nge5 {[%clk 0:02:15.8]} 22. Nxe5 {[%clk 0:01:42.3]}
22... Bxe5 {[%clk 0:02:14.7]} 23. Rad1 {[%clk 0:01:40.1]} 23... Qf6 {[%clk
0:02:11.8]} 24. Bb5 {[%clk 0:01:37.1]} 24... Nd4 {[%clk 0:01:52.3]} 25. Qd3
{[%clk 0:01:33.9]} 25... Qf4 {[%clk 0:01:42.1]} 26. Qg3 {[%clk 0:01:28.1]} 26...
Qxg3 {[%clk 0:01:31.2]} 27. fxg3 {[%clk 0:01:29]} 27... Nxb5 {[%clk 0:01:31.8]}
0-1

[Event "*** SCC Grand Prix: Titled Tuesday Blitz"]
[Site "Chess.com"]
[Date "2020.08.11"]
[Round "2"]
[White "Spriteball"]
[Black "blitzking1729"]
[Result "0-1"]
[WhiteElo "2077"]
[BlackElo "2617"]
[TimeControl "180+1"]
[EndTime "10:15:53 PDT"]
[Termination "blitzking1729 won by resignation"]

1. c4 {[%clk 0:03:00.9]} 1... Nc6 {[%clk 0:02:55.6]} 2. Nf3 {[%clk 0:02:58.3]}
2... e5 {[%clk 0:02:52.7]} 3. Nc3 {[%clk 0:02:57.4]} 3... f5 {[%clk 0:02:52.2]}
4. d4 {[%clk 0:02:48.4]} 4... e4 {[%clk 0:02:49.5]} 5. d5 {[%clk 0:02:36.9]}
5... exf3 {[%clk 0:02:42.1]} 6. dxc6 {[%clk 0:02:36.5]} 6... fxg2 {[%clk
0:02:41.6]} 7. cxd7+ {[%clk 0:02:35.5]} 7... Qxd7 {[%clk 0:02:40.7]} 8. Qxd7+
{[%clk 0:02:32.5]} 8... Bxd7 {[%clk 0:02:40.7]} 9. Bxg2 {[%clk 0:02:33]} 9...
O-O-O {[%clk 0:02:40.3]} 10. Be3 {[%clk 0:02:24.2]} 10... a6 {[%clk 0:02:36.6]}
11. O-O-O {[%clk 0:02:23.4]} 11... Nf6 {[%clk 0:02:36.3]} 12. Nd5 {[%clk
0:02:17.9]} 12... Ng4 {[%clk 0:02:33.9]} 13. Bd4 {[%clk 0:02:11.2]} 13... c5
{[%clk 0:01:52.6]} 14. Nb6+ {[%clk 0:01:40.3]} 14... Kc7 {[%clk 0:01:49.6]} 15.
Nd5+ {[%clk 0:01:39.9]} 15... Kb8 {[%clk 0:01:43.1]} 16. h3 {[%clk 0:01:32.1]}
16... cxd4 {[%clk 0:01:41.4]} 17. hxg4 {[%clk 0:01:32.1]} 17... fxg4 {[%clk
0:01:41]} 18. Rxd4 {[%clk 0:01:32]} 18... Bc5 {[%clk 0:01:40.3]} 19. Rd3 {[%clk
0:01:28.7]} 19... Bxf2 {[%clk 0:01:37.5]} 20. Rb3 {[%clk 0:01:14.1]} 20... Bc6
{[%clk 0:01:32.2]} 21. Rb6 {[%clk 0:01:11.4]} 21... Bxb6 {[%clk 0:01:29.3]} 0-1

[Event "*** SCC Grand Prix: Titled Tuesday Blitz"]
[Site "Chess.com"]
[Date "2020.08.11"]
[Round "2"]
[White "stolencandy13"]
[Black "GOGIEFF"]
[Result "0-1"]
[WhiteElo "2436"]
[BlackElo "2870"]
[TimeControl "180+1"]
[EndTime "10:15:56 PDT"]
[Termination "GOGIEFF won by resignation"]

1. e4 {[%clk 0:03:00.9]} 1... c5 {[%clk 0:02:59.2]} 2. Nf3 {[%clk 0:02:59.9]}
2... d6 {[%clk 0:02:59.6]} 3. d4 {[%clk 0:02:59.5]} 3... cxd4 {[%clk 0:03:00.1]}
4. Nxd4 {[%clk 0:03:00.4]} 4... Nf6 {[%clk 0:03:00.4]} 5. Nc3 {[%clk 0:03:00.3]}
5... a6 {[%clk 0:03:01]} 6. h3 {[%clk 0:03:00.3]} 6... Nc6 {[%clk 0:03:00.6]} 7.
g4 {[%clk 0:02:59.9]} 7... Qb6 {[%clk 0:03:00.5]} 8. Nb3 {[%clk 0:02:48.2]} 8...
e6 {[%clk 0:03:00.3]} 9. Be3 {[%clk 0:02:45.6]} 9... Qc7 {[%clk 0:03:00.4]} 10.
g5 {[%clk 0:02:43.4]} 10... Nd7 {[%clk 0:03:00]} 11. Qd2 {[%clk 0:02:41.5]}
11... b5 {[%clk 0:03:00]} 12. O-O-O {[%clk 0:02:36.9]} 12... Nce5 {[%clk
0:02:37.8]} 13. f4 {[%clk 0:02:28.4]} 13... Nc4 {[%clk 0:02:36.9]} 14. Bxc4
{[%clk 0:02:27.8]} 14... bxc4 {[%clk 0:02:37.8]} 15. Nd4 {[%clk 0:02:25.5]}
15... Rb8 {[%clk 0:02:38.1]} 16. f5 {[%clk 0:01:38.3]} 16... Qb7 {[%clk
0:02:27.2]} 17. Na4 {[%clk 0:01:37.5]} 17... Nc5 {[%clk 0:02:21.4]} 18. Qa5
{[%clk 0:01:22.5]} 18... Bd7 {[%clk 0:02:10]} 19. Nc3 {[%clk 0:01:05.1]} 19...
Qxb2+ {[%clk 0:01:58.7]} 20. Kd2 {[%clk 0:01:05.3]} 20... d5 {[%clk 0:01:57.2]}
21. Rb1 {[%clk 0:01:03]} 21... Qxc3+ {[%clk 0:01:55.2]} 0-1